bitfinex-derivatives/quotes_SOLF0:USTF0_20240818
["timestamp","ask_amount","ask_price","bid_price","bid_amount"]
[1723994732899,7.7943,145.56,145.52,7.38]
[1723994733106,7.7943,145.56,145.55,7.38]
[1723994735410,4.36,145.56,145.55,7.38]
[1723994735700,0.05070278,145.57,145.55,7.38]
[1723994735909,0.05070278,145.57,145.56,7.38]
[1723994738901,4.36,145.62,145.56,7.38]
[1723994739107,3.4332,145.61,145.59,7.38]
[1723994739301,4.36,145.62,145.59,7.38]
[1723994739906,3.433,145.61,145.59,7.38]
[1723994740106,3.433,145.61,145.59,7.42602823]
[1723994741707,3.4332,145.6,145.59,7.42602823]
[1723994744307,3.4332,145.6,145.59,0.04602823]
[1723994745208,3.433,145.61,145.59,0.04602823]
[1723994749013,11.78352835,145.62,145.52,0.2729]
[1723994749313,7.38,145.6,145.53,7.38]
[1723994749615,3.4343,145.56,145.53,7.38]
[1723994750310,3.48110032,145.56,145.53,7.4318421]
[1723994750511,3.4345,145.55,145.53,0.0518421]
[1723994750711,3.4345,145.55,145.53,7.4318421]
[1723994752210,0.04680032,145.56,145.53,0.0518421]
[1723994752211,3.4346,145.54,145.53,0.0518421]
[1723994754914,7.7946,145.54,145.53,0.0518421]
[1723994756114,3.4351,145.52,145.48,4.7985]
[1723994756311,3.4351,145.52,145.49,7.38]
[1723994756812,3.4353,145.51,145.49,7.38]
[1723994757214,4.36,145.54,145.49,7.42958546]
[1723994757414,3.48539635,145.51,145.49,7.42958546]
[1723994758117,3.48539635,145.51,145.5,7.38]
[1723994760208,3.4356,145.5,145.49,0.04958546]
[1723994760519,0.04989635,145.51,145.47,7.38]
[1723994760812,3.4359,145.49,145.47,7.38]
[1723994761516,3.48195703,145.49,145.47,7.43260949]
[1723994763310,3.436,145.48,145.47,0.05260949]
[1723994763719,3.436,145.48,145.47,7.43260949]
[1723994765124,3.436,145.48,145.47,0.05260949]
[1723994766012,3.4366,145.46,145.36,29.52]
[1723994766217,7.38,145.48,145.41,7.38]
[1723994766820,32.0824,145.51,145.43,7.38]
[1723994766821,2.5624,145.51,145.43,7.38]
[1723994767016,11.74,145.5,145.44,7.38]
[1723994767215,11.74,145.5,145.46,0.05213014]
[1723994767216,3.4364,145.47,145.46,0.05213014]
[1723994767422,0.04448039,145.48,145.46,0.05213014]
[1723994768017,3.48068039,145.48,145.46,0.05213014]
[1723994768419,0.04448039,145.48,145.46,0.05213014]
[1723994768622,3.4363,145.47,145.46,0.05213014]
[1723994769124,3.48058039,145.48,145.46,0.05213014]
[1723994770225,3.4363,145.47,145.46,0.05213014]
[1723994772528,3.48058039,145.48,145.46,7.43213014]
[1723994773623,3.4363,145.47,145.46,7.43213014]
[1723994774028,3.4363,145.47,145.46,0.05213014]
[1723994774629,3.48058039,145.48,145.46,0.05213014]
[1723994775530,3.48058039,145.48,145.47,7.38]
[1723994777635,0.04448039,145.48,145.47,7.38]
[1723994779335,3.48048039,145.48,145.47,7.38]
[1723994779534,0.04448039,145.48,145.47,7.38]
[1723994780038,3.48048039,145.48,145.46,0.05213014]
[1723994780332,0.04448039,145.48,145.46,0.05213014]
[1723994781431,3.4363,145.47,145.46,0.05213014]
[1723994783632,3.48068039,145.48,145.46,0.05213014]
[1723994784637,3.4363,145.47,145.46,0.05213014]
[1723994793939,3.48058039,145.48,145.46,7.43213014]
[1723994799239,1.3518,145.52,145.47,7.38]
[1723994800542,3.48762737,145.51,145.47,10.8162]
[1723994801739,0.05212737,145.51,145.47,7.38]
[1723994802451,3.4357,145.5,145.47,7.38]
[1723994802841,3.4357,145.5,145.47,10.8162]
[1723994803349,3.4358,145.49,145.46,3.48853014]
[1723994803551,3.4358,145.49,145.46,10.86853014]
[1723994804446,3.4362,145.48,145.46,0.05213014]
[1723994805946,3.4362,145.48,145.46,3.48863014]
[1723994806147,3.4359,145.49,145.46,3.48863014]
[1723994809550,3.4362,145.48,145.46,0.05213014]
[1723994810252,3.4363,145.47,145.46,0.05213014]
[1723994813653,3.4366,145.46,145.42,7.38]
[1723994813948,3.4366,145.46,145.43,7.38]
[1723994814150,3.4366,145.46,145.41,3.47765054]
[1723994814453,3.4366,145.46,145.43,7.38]
[1723994814754,3.48688784,145.46,145.43,7.42782633]
[1723994815348,3.4368,145.45,145.43,10.86502633]
[1723994816349,3.48688784,145.46,145.43,10.86502633]
[1723994817052,3.48688784,145.46,145.43,3.48502633]
[1723994817253,3.48688784,145.46,145.45,7.38]
[1723994819553,0.05028784,145.46,145.45,7.38]
[1723994821753,0.05028784,145.46,145.45,10.8167]
[1723994821955,4.34,145.49,145.45,10.8167]
[1723994822155,4.34,145.49,145.47,7.38]
[1723994822360,7.7759,145.49,145.47,7.38]
[1723994822960,7.82461522,145.49,145.47,7.42974049]
[1723994823356,3.436,145.48,145.47,0.04974049]
[1723994827463,7.82471522,145.49,145.47,0.04974049]
[1723994827659,0.04871522,145.49,145.48,7.38]
[1723994828958,0.04871522,145.49,145.48,10.816]
[1723994829162,0.04871522,145.49,145.47,0.04974049]
[1723994829357,0.04871522,145.49,145.48,7.38]
[1723994830869,0.04871522,145.49,145.48,10.816]
[1723994831371,4.34,145.54,145.48,7.38]
[1723994831582,1.3614,145.57,145.52,7.38]
[1723994831871,7.38,145.54,145.48,12.0568]
[1723994832472,0.04773082,145.52,145.5,0.04908107]
[1723994833875,3.48293082,145.52,145.5,0.04908107]
[1723994834177,7.42773082,145.52,145.5,0.04908107]
[1723994834375,3.4357,145.5,145.44,7.38]
[1723994834772,3.4357,145.5,145.45,3.4365]
[1723994835172,3.4359,145.49,145.45,3.4365]
[1723994835375,0.04610501,145.48,145.46,0.05057475]
[1723994836377,0.04610501,145.48,145.46,7.43057475]
[1723994836780,0.04610501,145.48,145.47,7.38]
[1723994837678,0.04610501,145.48,145.47,10.8163]
[1723994839776,0.04610501,145.48,145.46,0.05057475]
[1723994839976,0.04610501,145.48,145.47,7.38]
[1723994840876,0.04610501,145.48,145.47,10.8163]
[1723994843284,4.7766,145.51,145.48,3.4359]
[1723994843285,3.4354,145.51,145.48,3.4359]
[1723994843486,3.4354,145.51,145.5,7.38]
[1723994844282,0.05092036,145.52,145.5,7.38]
[1723994845886,3.48612036,145.52,145.5,7.38]
[1723994846989,0.05092036,145.52,145.5,7.38]
[1723994847585,3.48602036,145.52,145.5,7.38]
[1723994848493,3.4353,145.51,145.49,0.0439497]
[1723994848790,3.4353,145.51,145.49,7.4239497]
[1723994853194,0.05092036,145.52,145.49,7.4239497]
[1723994853195,3.48602036,145.52,145.49,7.4239497]
[1723994853994,3.4354,145.51,145.49,7.4239497]
[1723994856294,0.05092036,145.52,145.5,7.38]
[1723994856483,0.05092036,145.52,145.51,7.38]
[1723994863599,1.3555,145.57,145.54,7.38]
[1723994863903,4.7896,145.57,145.54,7.38]
[1723994864097,1.3555,145.57,145.54,7.38]
[1723994864603,1.40782791,145.57,145.54,7.42774019]
[1723994864802,3.4342,145.56,145.54,7.42774019]
[1723994865897,4.84182791,145.57,145.54,7.42774019]
[1723994866103,3.48632791,145.57,145.54,7.42774019]
[1723994866897,3.48632791,145.57,145.56,7.38]
[1723994867297,0.05232791,145.57,145.56,7.38]
[1723994868001,3.48622791,145.57,145.56,7.38]
[1723994876915,0.05232791,145.57,145.56,7.38]
[1723994877811,3.48622791,145.57,145.56,7.38]
[1723994881812,0.05232791,145.57,145.56,7.38]
[1723994883312,3.4338,145.58,145.56,7.38]
[1723994883511,3.4338,145.58,145.57,7.38]
[1723994884115,4.34,145.61,145.57,7.38]
[1723994884315,4.34,145.64,145.6,7.38]
[1723994884612,2.594,145.65,145.63,7.38]
[1723994885012,3.4323,145.64,145.63,7.42845889]
[1723994887422,3.4323,145.64,145.63,0.04845889]
[1723994888122,3.4329,145.62,145.6,7.38]
[1723994889023,3.4329,145.62,145.6,7.42825069]
[1723994890313,2.64660127,145.65,145.6,0.04825069]
[1723994890314,3.433,145.61,145.6,0.04825069]
[1723994893117,0.04552478,145.62,145.58,7.38]
[1723994893118,3.4334,145.59,145.58,7.38]
[1723994893620,3.4333,145.6,145.58,7.38]
[1723994893821,3.4333,145.6,145.59,7.38]
[1723994894024,0.04897284,145.6,145.59,7.38]
[1723994894324,0.04897284,145.6,145.58,0.0506664]
[1723994894516,0.04897284,145.6,145.59,7.38]
[1723994895818,3.48217284,145.6,145.58,0.0506664]
[1723994896019,0.04897284,145.6,145.58,7.4306664]
[1723994896726,0.04897284,145.6,145.58,0.0506664]
[1723994896925,3.48217284,145.6,145.59,7.38]
[1723994899227,0.04897284,145.6,145.59,7.38]
[1723994900934,3.4328,145.62,145.59,7.38]
[1723994901223,3.4328,145.62,145.6,7.38]
[1723994902028,3.48497702,145.62,145.6,7.38]
[1723994903224,3.433,145.61,145.59,7.38]
[1723994903525,0.05217702,145.62,145.59,7.38]
[1723994903726,0.05217702,145.62,145.58,7.4306664]
[1723994904022,0.05217702,145.62,145.58,0.0506664]
[1723994904229,4.37217702,145.62,145.58,0.0506664]
[1723994904626,3.4334,145.59,145.58,7.4306664]
[1723994907830,3.4334,145.59,145.58,0.0506664]
[1723994908029,3.4334,145.59,145.58,7.4306664]
[1723994911328,3.4334,145.59,145.58,0.0506664]
[1723994911536,3.4341,145.57,145.55,7.38]
[1723994911833,3.44539464,145.6,145.55,7.38]
[1723994912041,1.3221,145.59,145.55,7.38]
[1723994912539,0.05296545,145.58,145.56,7.42724848]
[1723994913840,3.4341,145.57,145.56,7.42724848]
[1723994914141,3.4341,145.57,145.56,0.04724848]
[1723994914442,3.4341,145.57,145.56,7.42724848]
[1723994917039,3.48676545,145.58,145.56,7.42724848]
[1723994918139,0.05296545,145.58,145.56,7.42724848]
[1723994922643,3.4333,145.6,145.56,7.42724848]
[1723994922847,3.4333,145.6,145.58,7.38]
[1723994923147,3.4334,145.59,145.58,7.38]
[1723994924646,0.04473823,145.6,145.58,7.38]
[1723994924848,7.70289809,145.68,145.61,7.38]
[1723994925144,4.32,145.68,145.64,7.38]
[1723994925554,7.78232202,145.68,145.64,7.38]
[1723994925859,0.05141865,145.67,145.65,0.04999075]
[1723994926850,3.4318,145.66,145.65,0.04999075]
[1723994936068,3.4318,145.66,145.65,7.42999075]
[1723994937270,3.48301865,145.67,145.65,7.42999075]
[1723994937459,3.48301865,145.67,145.66,7.38]
[1723994938466,3.4318,145.66,145.65,7.42999075]
[1723994941767,3.4318,145.66,145.65,0.04999075]
[1723994944169,3.4328,145.62,145.6,7.38]
[1723994945171,3.48188026,145.62,145.6,7.42435489]
[1723994946778,0.04908026,145.62,145.6,7.42435489]
[1723994949776,0.04908026,145.62,145.6,10.85755489]
[1723994950376,0.04908026,145.62,145.6,7.42435489]
[1723994951778,0.04908026,145.62,145.61,7.38]
[1723994955881,3.48178026,145.62,145.61,7.38]
[1723994959882,3.433,145.61,145.6,0.04435489]
[1723994964685,3.4335,145.59,145.58,7.38]
[1723994984199,3.4332,145.6,145.58,7.38]
[1723994984395,3.4332,145.6,145.59,7.38]
[1723994995423,3.4335,145.59,145.58,7.38]
[1723995000009,3.4333,145.6,145.58,7.38]
[1723995001318,7.753,145.61,145.59,7.38]
[1723995001525,3.433,145.61,145.59,7.38]
[1723995002319,3.48188026,145.62,145.59,7.38]
[1723995002524,3.48188026,145.62,145.61,7.38]
[1723995011440,3.433,145.61,145.6,7.43198402]
[1723995011634,3.433,145.61,145.6,0.05198402]
[1723995015939,3.433,145.61,145.6,7.43198402]
[1723995016337,0.04908026,145.62,145.6,7.43198402]
[1723995016535,0.04908026,145.62,145.61,7.38]
[1723995019042,3.4325,145.63,145.61,7.38]
[1723995020133,3.48332676,145.63,145.61,7.38]
[1723995026239,0.05082676,145.63,145.61,7.38]
[1723995026444,4.3,145.67,145.61,7.38]
[1723995026644,4.3,145.67,145.65,7.38]
[1723995027447,4.34830979,145.67,145.65,7.42798995]
[1723995027649,3.4318,145.66,145.65,0.04798995]
[1723995027844,3.4318,145.66,145.65,7.42798995]
[1723995033451,3.4318,145.66,145.65,0.04798995]
[1723995034153,3.4318,145.66,145.65,7.42798995]
[1723995035851,7.78000979,145.67,145.65,7.42798995]
[1723995036050,3.48000979,145.67,145.65,7.42798995]
[1723995044056,0.04830979,145.67,145.65,7.42798995]
[1723995045450,4.3,145.7,145.65,36.94798995]
[1723995045657,4.3,145.7,145.69,7.38]
[1723995045962,3.4311,145.7,145.69,7.38]
[1723995048057,4.75813955,145.71,145.69,7.38]
[1723995048462,4.75813955,145.71,145.7,7.38]
[1723995048956,27.46,145.77,145.7,7.38]
[1723995049263,4.3,145.75,145.72,7.38]
[1723995050051,4.3,145.75,145.72,7.42756735]
[1723995051256,3.4296,145.76,145.74,7.38]
[1723995051955,3.4297,145.75,145.74,7.38]
[1723995052155,5.5747,145.77,145.73,7.38]
[1723995052457,7.38,145.76,145.72,0.04756735]
[1723995052661,3.4301,145.73,145.72,0.04756735]
[1723995057571,3.4316,145.67,145.66,1.2421]
[1723995057763,4.3,145.72,145.58,7.478]
[1723995057957,10.0287,145.71,145.65,7.38]
[1723995058156,7.38,145.7,145.59,5.6241]
[1723995058360,7.38,145.7,145.59,1.3241]
[1723995058561,7.38,145.69,145.63,7.38]
[1723995058769,0.04636283,145.66,145.63,0.0478904]
[1723995059763,3.4324,145.64,145.63,0.0478904]
[1723995060070,3.4324,145.64,145.54,1.3378]
[1723995060071,11.68,145.64,145.54,1.3378]
[1723995060265,3.40828655,145.63,145.57,7.38]
[1723995060765,3.4336,145.59,145.57,7.38]
[1723995061071,0.05282325,145.59,145.57,0.0465675]
[1723995061263,0.05282325,145.59,145.54,7.38]
[1723995061466,1.33362325,145.59,145.54,7.38]
[1723995061663,1.2808,145.59,145.54,7.38]
[1723995061867,3.4343,145.56,145.5,29.52]
[1723995062061,3.4343,145.56,145.55,7.38]
[1723995062666,48.01389122,145.66,145.55,7.38]
[1723995062871,48.01389122,145.66,145.58,7.38]
[1723995062872,4.3,145.64,145.58,7.38]
[1723995063074,5.6487,145.64,145.58,7.38]
[1723995063669,7.38,145.62,145.5,33.82]
[1723995063870,7.42558028,145.62,145.6,0.05090824]
[1723995064168,7.42558028,145.62,145.56,7.38]
[1723995064169,3.4339,145.57,145.56,7.38]
[1723995065672,4.34663008,145.58,145.49,1.3378]
[1723995065873,1.3685,145.57,145.51,7.38]
[1723995066085,3.4348,145.54,145.51,7.38]
[1723995066287,1.3685,145.57,145.51,7.38]
[1723995066583,8.7485,145.57,145.49,1.3378]
[1723995066784,3.4353,145.52,145.51,7.38]
[1723995067483,3.4349,145.53,145.51,7.38]
[1723995067676,4.34527409,145.54,145.52,7.38]
[1723995068083,7.78017409,145.54,145.52,7.38]
[1723995068480,1.3685,145.57,145.52,7.38]
[1723995068687,4.8024,145.57,145.56,7.38]
[1723995068882,9.1024,145.57,145.56,7.38]
[1723995070876,7.7339,145.57,145.56,7.38]
[1723995071478,0.04594956,145.58,145.56,7.38]
[1723995071686,4.3,145.59,145.57,7.38]
[1723995072784,4.34920231,145.59,145.57,7.38]
[1723995072987,7.78280231,145.59,145.57,7.38]
[1723995073183,4.34920231,145.59,145.57,7.38]
[1723995073476,4.34920231,145.59,145.56,7.38]
[1723995073882,3.4342,145.56,145.55,7.43273439]
[1723995076491,3.4342,145.56,145.55,0.05273439]
[1723995077284,3.4342,145.56,145.39,40.93508491]
[1723995077285,22.80920231,145.59,145.39,40.93508491]
[1723995077490,22.76,145.59,145.5,18.46]
[1723995078385,0.05025107,145.56,145.53,0.04481801]
[1723995078988,3.4346,145.55,145.53,0.04481801]
[1723995079186,0.05025107,145.56,145.54,18.46]
[1723995079394,4.3,145.59,145.55,18.46]
[1723995079584,3.4338,145.58,145.53,0.04481801]
[1723995079785,3.4338,145.58,145.57,18.46]
[1723995080389,3.4339,145.57,145.56,18.46]
[1723995080685,3.4339,145.57,145.56,18.50459777]
[1723995081790,3.4339,145.57,145.56,0.04459777]
[1723995087391,3.4339,145.57,145.56,18.50459777]
[1723995088191,3.4339,145.57,145.56,0.04459777]
[1723995091594,3.4339,145.57,145.54,18.46]
[1723995091595,3.4349,145.53,145.52,18.46]
[1723995092101,4.3,145.55,145.52,18.46]
[1723995092600,3.4348,145.54,145.52,18.46]
[1723995092803,3.4348,145.54,145.52,18.50469736]
[1723995093098,3.4349,145.53,145.52,18.50469736]
[1723995095996,3.4349,145.53,145.52,0.04469736]
[1723995096507,3.4349,145.53,145.52,7.43469736]
[1723995099096,3.4349,145.53,145.52,0.04469736]
[1723995099301,3.4349,145.53,145.52,7.43469736]
[1723995099907,3.4347,145.54,145.52,7.43469736]
[1723995100206,0.04348905,145.55,145.53,7.39]
[1723995100405,3.47798905,145.55,145.53,7.39]
[1723995106209,3.4346,145.54,145.53,7.39]
[1723995107216,3.47808905,145.55,145.53,7.39]
[1723995108915,3.4346,145.54,145.53,7.39]
[1723995109216,0.04348905,145.55,145.53,7.39]
[1723995109513,3.47808905,145.55,145.53,7.39]
[1723995112417,3.4346,145.54,145.53,7.39]
[1723995117612,3.4349,145.53,145.52,7.43469736]
[1723995118517,3.4349,145.53,145.52,0.04469736]
[1723995118921,3.4353,145.51,145.5,7.39]
[1723995120423,3.4356,145.5,145.49,0.04648907]
[1723995120617,0.04816131,145.52,145.45,3.37970719]
[1723995120618,1.37176131,145.52,145.45,7.39]
[1723995120816,7.39,145.51,145.45,7.39]
[1723995121120,8.6539,145.51,145.45,7.39]
[1723995121325,8.6539,145.51,145.42,1.3358]
[1723995121521,3.4368,145.45,145.44,7.39]
[1723995122815,3.4366,145.46,145.44,7.39]
[1723995123020,3.4366,145.46,145.45,7.39]
[1723995125022,4.3,145.47,145.45,36.95]
[1723995125226,0.04601809,145.48,145.45,36.95]
[1723995125523,3.4357,145.5,145.47,7.39]
[1723995125826,3.4357,145.5,145.49,7.39]
[1723995126428,3.4357,145.5,145.49,18.48]
[1723995128224,3.4358,145.49,145.48,0.04668519]
[1723995129025,3.4357,145.5,145.48,18.52668519]
[1723995130826,3.4846503,145.51,145.48,18.52668519]
[1723995131228,0.0492503,145.51,145.48,18.52668519]
[1723995131425,0.0492503,145.51,145.5,18.48]
[1723995133026,3.4845503,145.51,145.48,18.52668519]
[1723995133833,0.0492503,145.51,145.48,0.04668519]
[1723995134427,3.4356,145.5,145.48,0.04668519]
[1723995135637,3.4846503,145.51,145.48,18.52668519]
[1723995135838,0.0492503,145.51,145.5,18.48]
[1723995136033,3.4349,145.53,145.5,18.48]
[1723995136236,3.4349,145.53,145.52,18.48]
[1723995136527,3.4349,145.53,145.45,22.78]
[1723995136528,4.3,145.54,145.5,18.48]
[1723995136931,3.435,145.53,145.5,18.48]
[1723995137139,3.48463295,145.53,145.51,0.04622593]
[1723995137432,0.04963295,145.53,145.51,0.04622593]
[1723995137638,0.04963295,145.53,145.42,1.3358]
[1723995137938,4.3,145.54,145.45,18.48]
[1723995138136,4.3,145.54,145.47,18.48]
[1723995138737,0.05141026,145.52,145.49,0.04765253]
[1723995139337,3.4353,145.51,145.49,0.04765253]
[1723995139526,0.05141026,145.52,145.49,0.04765253]
[1723995140236,3.4356,145.5,145.49,0.04765253]
[1723995141028,4.3,145.5,145.44,18.48]
[1723995141232,1.3164,145.49,145.44,18.48]
[1723995141431,1.3164,145.49,145.46,18.48]
[1723995141631,4.3,145.5,145.46,18.48]
[1723995142039,0.04843268,145.49,145.47,0.04952389]
[1723995142239,3.48423268,145.49,145.47,0.04952389]
[1723995146740,0.04843268,145.49,145.48,18.48]
[1723995148434,0.04843268,145.49,145.48,7.39]
[1723995148638,3.48423268,145.49,145.48,7.39]
[1723995150138,0.04843268,145.49,145.48,7.39]
[1723995150539,0.04843268,145.49,145.48,18.48]
[1723995151548,4.3,145.52,145.48,18.48]
[1723995152048,3.4356,145.5,145.48,18.48]
[1723995152647,3.48311496,145.5,145.48,18.48]
[1723995153039,0.04751496,145.5,145.48,18.48]
[1723995153954,0.04751496,145.5,145.48,21.916]
[1723995157354,3.4352,145.52,145.49,3.4358]
[1723995157655,3.4352,145.52,145.5,18.48]
[1723995158355,3.47901799,145.52,145.5,18.52619759]
[1723995160047,3.4353,145.51,145.5,18.52619759]
[1723995160246,3.4353,145.51,145.5,0.04619759]
[1723995161753,0.04381799,145.52,145.5,18.52619759]
[1723995162354,0.04381799,145.52,145.5,21.96169759]
[1723995162656,0.04381799,145.52,145.5,18.52619759]
[1723995169366,0.04381799,145.52,145.5,21.96169759]
[1723995169662,3.4347,145.54,145.5,21.96169759]
[1723995169864,3.4347,145.54,145.52,18.48]
[1723995170163,5.6164,145.55,145.52,18.48]
[1723995170164,3.4349,145.53,145.52,18.48]
[1723995170556,3.4349,145.53,145.52,7.39]
[1723995171063,3.47866853,145.54,145.52,7.39]
[1723995173368,0.04396853,145.54,145.52,7.39]
[1723995178673,1.3367,145.6,145.52,36.95]
[1723995178875,1.3367,145.6,145.59,7.39]
[1723995179068,4.3,145.61,145.59,7.39]
[1723995179766,4.34881384,145.61,145.59,0.04769092]
[1723995181863,3.4332,145.6,145.59,0.04769092]
[1723995183073,3.4332,145.6,145.59,7.43769092]
[1723995183875,7.78191384,145.61,145.59,7.43769092]
[1723995184065,3.48191384,145.61,145.6,7.39]
[1723995185772,3.4332,145.6,145.59,7.43769092]
[1723995185975,3.4332,145.6,145.59,0.04769092]
[1723995187673,3.4332,145.6,145.57,7.39]
[1723995187674,11.69,145.6,145.43,64.91051648]
[1723995187873,11.69,145.6,145.53,7.39]
[1723995187874,9.9291,145.59,145.53,7.39]
[1723995188574,3.4345,145.55,145.53,7.39]
[1723995189068,3.4345,145.55,145.53,7.43892161]
[1723995190574,0.04880468,145.57,145.54,7.39]
[1723995190775,0.04880468,145.57,145.56,7.39]
[1723995191378,3.43546008,145.65,145.56,7.39]
[1723995191575,3.4334,145.6,145.59,7.39]
[1723995192476,3.4335,145.59,145.58,18.49530026]
[1723995193983,3.4335,145.59,145.58,0.04530026]
[1723995194477,3.4341,145.57,145.54,18.45]
[1723995195283,3.4342,145.56,145.54,18.45]
[1723995195480,3.4342,145.56,145.54,18.49900529]
[1723995195984,3.47792601,145.57,145.54,18.49900529]
[1723995196279,0.04392601,145.57,145.54,18.49900529]
[1723995197981,0.04392601,145.57,145.56,18.45]
[1723995199980,4.3,145.6,145.56,18.45]
[1723995200185,4.3,145.61,145.59,18.45]
[1723995200386,3.4333,145.6,145.59,18.45]
[1723995202380,3.4334,145.59,145.58,0.05204646]
[1723995206291,3.4333,145.6,145.58,0.05204646]
[1723995206679,3.4333,145.6,145.59,18.45]
[1723995210589,4.34817753,145.61,145.59,18.45]
[1723995211487,7.78117753,145.61,145.59,18.45]
[1723995212194,3.4332,145.6,145.59,18.45]
[1723995214494,3.4332,145.6,145.59,7.38]
[1723995215382,7.78127753,145.61,145.59,7.38]
[1723995215583,27.48,145.66,145.59,7.38]
[1723995215783,4.28,145.65,145.64,7.38]
[1723995215989,4.28,145.66,145.64,7.38]
[1723995216782,3.4323,145.65,145.64,7.4245881]
[1723995217194,95.6942348,145.75,145.64,7.4245881]
[1723995217490,6.8184,145.74,145.7,7.38]
[1723995217696,3.4306,145.71,145.7,7.38]
[1723995218495,3.4306,145.71,145.68,0.04869853]
[1723995218496,3.4306,145.71,145.69,18.45]
[1723995218886,3.4305,145.72,145.7,18.45]
[1723995219286,6.8184,145.74,145.7,18.45]
[1723995219287,4.28,145.74,145.7,18.45]
[1723995219488,3.4299,145.74,145.73,18.45]
[1723995219792,7.79302409,145.77,145.7,18.45]
[1723995219992,3.4302,145.73,145.72,0.04379903]
[1723995220289,4.28,145.77,145.72,18.49379903]
[1723995220490,3.43,145.74,145.72,18.49379903]
[1723995221085,3.4301,145.73,145.72,18.49379903]
[1723995221290,2.5384,145.78,145.72,18.49379903]
[1723995221595,3.4294,145.77,145.75,18.45]
[1723995222595,3.4294,145.76,145.75,18.49482835]
[1723995225195,1.2347,145.78,145.75,18.49482835]
[1723995225893,4.28,145.79,145.75,18.49482835]
[1723995226094,3.4293,145.77,145.75,18.49482835]
[1723995226998,3.4294,145.76,145.75,0.04482835]
[1723995232789,18.45,145.78,145.67,1.316]
[1723995232997,22.73,145.77,145.68,18.45]
[1723995233399,3.431,145.7,145.68,18.45]
[1723995233696,7.65668301,145.72,145.61,0.2805]
[1723995233896,7.65668301,145.72,145.65,0.04879722]
[1723995233897,0.049218,145.68,145.65,0.04879722]
[1723995234099,4.28,145.67,145.65,0.04879722]
[1723995234395,7.7116,145.67,145.65,0.04879722]
[1723995235906,3.4318,145.66,145.65,0.04879722]
[1723995236603,4.28,145.67,145.65,0.04879722]
[1723995237496,7.7116,145.67,145.65,0.04879722]
[1723995238302,7.7116,145.67,145.65,18.49879722]
[1723995239595,0.049218,145.68,145.65,18.49879722]
[1723995239799,0.049218,145.68,145.67,18.45]
[1723995240803,3.480518,145.68,145.67,18.45]
[1723995240999,0.049218,145.68,145.65,18.49879722]
[1723995242203,3.4316,145.67,145.65,18.49879722]
[1723995242603,0.049218,145.68,145.65,18.49879722]
[1723995242800,3.480618,145.68,145.65,18.49879722]
[1723995243805,0.049218,145.68,145.65,18.49879722]
[1723995244519,0.049218,145.68,145.67,18.45]
[1723995245114,1.3686,145.72,145.67,18.45]
[1723995245417,5.6486,145.72,145.7,18.45]
[1723995246114,5.6486,145.72,145.7,18.50201023]
[1723995246819,3.4307,145.71,145.7,18.50201023]
[1723995247413,3.4307,145.71,145.7,0.05201023]
[1723995250110,7.7105,145.72,145.7,0.05201023]
[1723995251020,3.4306,145.71,145.7,0.05201023]
[1723995253721,3.4306,145.71,145.7,18.50201023]
[1723995254310,4.28,145.72,145.7,18.50201023]
[1723995255822,7.7104,145.72,145.7,18.50201023]
[1723995256222,1.2958,145.77,145.7,18.50201023]
[1723995256422,3.4302,145.73,145.7,0.05201023]
[1723995256615,3.4302,145.73,145.72,7.38]
[1723995258022,3.4304,145.72,145.71,7.38]
[1723995258223,4.28,145.74,145.7,0.05201023]
[1723995258418,4.28,145.74,145.7,7.43201023]
[1723995258621,3.4306,145.71,145.7,7.43201023]